[Event "Open Mancomunitat de la Ribera Alta (Sumacàrcer)"]
[Site "Sumacàrcer, Spain"]
[Date "2018.11.18"]
[Round "8.3"]
[White "Plaskett, H James"]
[Black "Ibanez Aullana, Ramon"]
[Result "0-1"]
[TimeControl "5m+3s"]
[WhiteElo "2490"]
[BlackElo "2282"]

1. e4 {[%clk 00:05:04]} e6 {[%clk 00:05:05]} 2. d4 {[%clk 00:05:06]} d5 {[%clk
00:05:07]} 3. Nd2 {[%clk 00:05:08]} Nf6 {[%clk 00:05:04]} {[%emt 00:00:03]} 4.
Bd3 {[%clk 00:05:08]} c5 {[%clk 00:05:01]} 5. e5 {[%clk 00:05:05]} Nfd7 {[%clk
00:05:02]} 6. c3 {[%clk 00:05:08]} Be7 {[%clk 00:04:52]} {[%emt 00:00:18]} 7.
Ngf3 {[%clk 00:05:05]} b6 {[%clk 00:04:40]} {[%emt 00:00:12]} 8. O-O {[%clk
00:04:45]} {[%emt 00:00:41]} Ba6 {[%clk 00:04:40]} 9. Bxa6 {[%clk 00:04:45]}
Nxa6 {[%clk 00:04:42]} 10. Re1 {[%clk 00:04:47]} O-O {[%clk 00:04:36]} {[%emt
00:00:04]} 11. Nf1 {[%clk 00:04:49]} cxd4 {[%clk 00:04:31]} {[%emt 00:00:05]}
12. cxd4 {[%clk 00:04:50]} {[%emt 00:00:03]} Rc8 {[%clk 00:04:26]} {[%emt
00:00:05]} 13. a3 {[%clk 00:04:51]} {[%emt 00:00:08]} Nab8 {[%clk 00:04:23]}
{[%emt 00:00:04]} 14. Ng3 {[%clk 00:04:44]} {[%emt 00:00:05]} Qc7 {[%clk
00:04:11]} {[%emt 00:00:38]} 15. Re2 {[%clk 00:04:42]} Qc4 {[%clk 00:03:33]}
{[%emt 00:00:40]} 16. h4 {[%clk 00:03:56]} {[%emt 00:00:32]} a5 {[%clk
00:03:20]} {[%emt 00:00:17]} 17. Bg5 {[%clk 00:03:49]} {[%emt 00:00:13]} Bxg5
{[%clk 00:02:53]} {[%emt 00:00:29]} 18. hxg5 {[%clk 00:03:48]} {[%emt
00:00:04]} a4 {[%clk 00:02:46]} {[%emt 00:00:09]} 19. Nh5 {[%clk 00:03:26]}
{[%emt 00:00:23]} Nc6 {[%clk 00:02:37]} {[%emt 00:00:40]} 20. Qd2 {[%clk
00:02:28]} {[%emt 00:00:33]} Kh8 {[%clk 00:02:09]} {[%emt 00:00:32]} 21. Kh2
{[%clk 00:02:18]} {[%emt 00:00:13]} Na5 {[%clk 00:01:47]} {[%emt 00:00:24]} 22.
Rae1 {[%clk 00:02:10]} {[%emt 00:00:11]} Nb8 {[%clk 00:01:26]} {[%emt
00:00:34]} 23. Kg3 {[%clk 00:01:54]} {[%emt 00:00:12]} Nb3 {[%clk 00:00:58]}
{[%emt 00:00:31]} 24. Qe3 {[%clk 00:01:46]} {[%emt 00:00:11]} Nc6 {[%clk
00:00:49]} {[%emt 00:00:10]} 25. Rd1 {[%clk 00:01:27]} {[%emt 00:00:21]} Ne7
{[%clk 00:00:52]} 26. Kf4 {[%clk 00:00:46]} {[%emt 00:00:44]} Ng6+ {[%clk
00:00:54]} {[%emt 00:00:36]} 27. Kg4 {[%clk 00:00:38]} {[%emt 00:00:04]} Qc7
{[%clk 00:00:51]} 28. Rh1 {[%clk 00:00:35]} Ne7 {[%clk 00:00:52]} 29. Ng3
{[%clk 00:00:31]} Kg8 {[%clk 00:00:47]} {[%emt 00:00:04]} 30. Qd3 {[%clk
00:00:30]} {[%emt 00:00:04]} Ng6 {[%clk 00:00:49]} {[%emt 00:00:04]} 31. Qd1
{[%clk 00:00:29]} {[%emt 00:00:03]} Qc1 {[%clk 00:00:48]} {[%emt 00:00:04]} 32.
Qd3 {[%clk 00:00:28]} {[%emt 00:00:08]} Qc4 {[%clk 00:00:49]} 33. Qe3 {[%clk
00:00:30]} {[%emt 00:00:07]} Nc1 {[%clk 00:00:40]} {[%emt 00:00:12]} 34. Ree1
{[%clk 00:00:27]} {[%emt 00:00:04]} Nd3 {[%clk 00:00:42]} 35. Reg1 {[%clk
00:00:24]} Ndf4 {[%clk 00:00:43]} 36. Rh2 {[%clk 00:00:22]} {[%emt 00:00:08]}
Qb3 {[%clk 00:00:42]} {[%emt 00:00:04]} 37. Qxb3 {[%clk 00:00:15]} {[%emt
00:00:06]} axb3 {[%clk 00:00:45]} {[%emt 00:00:08]} {Bandera} 0-1

[Event "Open Mancomunitat de la Ribera Alta (Sumacàrcer)"]
[Site "Sumacàrcer, Spain"]
[Date "2018.11.18"]
[Round "8.4"]
[White "Kovacevic, Slobodan"]
[Black "Pedros Viudes, Santiago"]
[Result "1-0"]
[TimeControl "5m+3s"]
[WhiteElo "2455"]
[BlackElo "2009"]

1. d4 {[%clk 00:05:05]} Nf6 {[%clk 00:05:04]} 2. Nf3 {[%clk 00:05:07]} d5
{[%clk 00:05:05]} {[%emt 00:00:03]} 3. Bf4 {[%clk 00:05:09]} c5 {[%clk
00:05:06]} 4. e3 {[%clk 00:05:11]} Nc6 {[%clk 00:04:48]} {[%emt 00:00:10]} 5.
c3 {[%clk 00:05:13]} Qb6 {[%clk 00:04:49]} {[%emt 00:00:09]} 6. Qb3 {[%clk
00:05:15]} c4 {[%clk 00:04:51]} 7. Qc2 {[%clk 00:05:17]} Bf5 {[%clk 00:04:44]}
{[%emt 00:00:07]} 8. Qc1 {[%clk 00:05:19]} h6 {[%clk 00:04:33]} {[%emt
00:00:06]} 9. Nbd2 {[%clk 00:05:19]} {[%emt 00:00:35]} e6 {[%clk 00:04:23]}
{[%emt 00:00:03]} 10. Be2 {[%clk 00:05:17]} Nh5 {[%clk 00:03:41]} {[%emt
00:00:28]} 11. Bg3 {[%clk 00:05:19]} Nxg3 {[%clk 00:03:08]} {[%emt 00:00:50]}
12. hxg3 {[%clk 00:05:21]} Bd6 {[%clk 00:03:05]} 13. Bd1 {[%clk 00:05:22]} Qc7
{[%clk 00:02:54]} {[%emt 00:00:12]} 14. Bc2 {[%clk 00:05:23]} {[%emt 00:00:03]}
Bxc2 {[%clk 00:02:54]} {[%emt 00:00:03]} 15. Qxc2 {[%clk 00:05:24]} b5 {[%clk
00:02:57]} {[%emt 00:00:04]} 16. e4 {[%clk 00:05:25]} {[%emt 00:00:03]} b4
{[%clk 00:02:50]} {[%emt 00:00:07]} 17. O-O {[%clk 00:05:22]} {[%emt 00:00:09]}
O-O {[%clk 00:02:46]} {[%emt 00:00:09]} 18. Rfe1 {[%clk 00:05:24]} a5 {[%clk
00:02:39]} {[%emt 00:00:06]} 19. Nf1 {[%clk 00:05:01]} {[%emt 00:00:30]} a4
{[%clk 00:02:34]} {[%emt 00:00:03]} 20. a3 {[%emt 00:00:26]} bxa3 {[%clk
00:02:30]} {[%emt 00:00:36]} 21. bxa3 {[%clk 00:04:37]} Rfb8 {[%clk 00:02:30]}
{[%emt 00:00:07]} 22. Ne3 {[%clk 00:04:38]} Qa5 {[%clk 00:02:19]} 23. Nd2
{[%clk 00:04:23]} {[%emt 00:00:05]} Rb3 {[%clk 00:02:12]} {[%emt 00:00:07]} 24.
Nxb3 {[%clk 00:03:51]} {[%emt 00:00:36]} axb3 {[%clk 00:02:09]} {[%emt
00:00:13]} 25. Qd2 {[%clk 00:03:51]} Qb5 {[%clk 00:01:50]} {[%emt 00:00:17]} 26.
a4 {[%clk 00:03:47]} {[%emt 00:00:16]} Rxa4 {[%clk 00:01:51]} 27. Rxa4 {[%clk
00:03:46]} {[%emt 00:00:13]} Qxa4 {[%clk 00:01:53]} 28. exd5 {[%clk 00:03:47]}
{[%emt 00:00:03]} exd5 {[%clk 00:01:34]} {[%emt 00:00:10]} 29. Nxd5 {[%clk
00:03:48]} {[%emt 00:00:04]} Na5 {[%clk 00:01:15]} {[%emt 00:00:16]} 30. Qe2
{[%clk 00:03:42]} {[%emt 00:00:09]} Ba3 {[%clk 00:00:42]} {[%emt 00:00:54]} 31.
Ra1 {[%clk 00:03:07]} {[%emt 00:00:23]} Nb7 {[%clk 00:00:24]} {[%emt 00:00:20]}
32. Ne7+ {[%clk 00:02:31]} {[%emt 00:00:37]} Kh8 {[%clk 00:00:18]} {[%emt
00:00:15]} 33. Qe5 {[%clk 00:02:21]} {[%emt 00:00:08]} Nd6 {[%clk 00:00:07]}
{[%emt 00:00:14]} 34. Qd5 {[%clk 00:02:01]} {[%emt 00:00:24]} b2 {[%clk
00:00:08]} {[%emt 00:00:16]} 35. Rf1 {[%clk 00:02:00]} Qc2 {[%clk 00:00:08]} 36.
Qa8+ {[%clk 00:02:01]} Kh7 {[%clk 00:00:08]} 37. Qg8# {[%emt 00:00:25]} 1-0

[Event "Open Mancomunitat de la Ribera Alta (Sumacàrcer)"]
[Site "Sumacàrcer, Spain"]
[Date "2018.11.18"]
[Round "8.5"]
[White "Minguez Piquer, Joaquim"]
[Black "Campos Gambuti, Luis Maria"]
[Result "0-1"]
[TimeControl "5m+3s"]
[WhiteElo "1786"]
[BlackElo "2432"]

1. e4 {[%clk 00:05:03]} d6 {[%clk 00:05:06]} 2. d4 {[%clk 00:05:04]} Nf6 {[%clk
00:05:08]} 3. Nc3 {[%clk 00:05:05]} Nbd7 {[%clk 00:05:10]} {[%emt 00:00:09]} 4.
f4 {[%clk 00:04:58]} {[%emt 00:00:04]} e5 {[%clk 00:05:12]} 5. fxe5 {[%clk
00:04:52]} {[%emt 00:00:11]} dxe5 {[%clk 00:05:14]} {[%emt 00:00:05]} 6. dxe5
{[%clk 00:04:48]} {[%emt 00:00:07]} Nxe5 {[%clk 00:05:15]} 7. Qxd8+ {[%clk
00:04:38]} {[%emt 00:00:08]} Kxd8 {[%clk 00:05:16]} {[%emt 00:00:03]} 8. Bf4
{[%clk 00:04:26]} {[%emt 00:00:14]} Bd6 {[%clk 00:05:05]} {[%emt 00:00:30]} 9.
O-O-O {[%clk 00:04:19]} {[%emt 00:00:04]} Ke7 {[%clk 00:05:01]} 10. Nf3 {[%clk
00:04:06]} {[%emt 00:00:10]} Nd3+ {[%clk 00:04:41]} {[%emt 00:00:23]} 11. Bxd3
{[%clk 00:03:46]} {[%emt 00:00:24]} Bxf4+ {[%clk 00:04:43]} {[%emt 00:00:21]}
12. Kb1 {[%clk 00:03:46]} c6 {[%clk 00:04:45]} 13. h3 {[%clk 00:03:09]} {[%emt
00:00:24]} Nd7 {[%clk 00:04:38]} {[%emt 00:00:28]} 14. Rhf1 {[%clk 00:02:51]}
{[%emt 00:00:09]} Be5 {[%clk 00:04:30]} {[%emt 00:00:08]} 15. Bc4 {[%clk
00:02:18]} {[%emt 00:00:32]} f6 {[%clk 00:03:49]} {[%emt 00:00:49]} 16. Nxe5
{[%clk 00:02:06]} {[%emt 00:00:13]} Nxe5 {[%clk 00:03:51]} {[%emt 00:00:03]} 17.
Bb3 {[%clk 00:02:06]} {[%emt 00:00:03]} h5 {[%clk 00:03:45]} {[%emt 00:00:10]}
18. Ne2 {[%clk 00:01:56]} {[%emt 00:00:10]} a5 {[%clk 00:03:32]} {[%emt
00:00:14]} 19. a3 {[%clk 00:01:54]} {[%emt 00:00:15]} a4 {[%clk 00:03:25]} 20.
Ba2 {[%clk 00:01:56]} {[%emt 00:00:09]} h4 {[%clk 00:03:23]} {[%emt 00:00:03]}
21. Nf4 {[%clk 00:01:50]} {[%emt 00:00:05]} Ra5 {[%clk 00:03:00]} {[%emt
00:00:24]} 22. Nd3 {[%clk 00:01:28]} {[%emt 00:00:29]} Ng6 {[%clk 00:02:14]}
{[%emt 00:00:45]} 23. Rde1 {[%clk 00:01:17]} {[%emt 00:00:13]} Rhh5 {[%clk
00:02:15]} {[%emt 00:00:35]} 24. Kc1 {[%clk 00:01:06]} {[%emt 00:00:07]} Rhg5
{[%clk 00:02:16]} 25. Rf2 {[%clk 00:01:04]} Rg3 {[%clk 00:02:12]} 26. Rfe2
{[%clk 00:00:46]} {[%emt 00:00:09]} Rag5 {[%clk 00:01:58]} {[%emt 00:00:17]} 27.
e5 {[%clk 00:00:48]} {[%emt 00:00:32]} f5 {[%clk 00:02:01]} 28. e6 {[%clk
00:00:23]} {[%emt 00:00:03]} Rxg2 {[%clk 00:02:02]} {[%emt 00:00:03]} 29. Nc5
{[%clk 00:00:15]} {[%emt 00:00:08]} Rxe2 {[%clk 00:01:57]} {[%emt 00:00:07]} 30.
Rxe2 {[%clk 00:00:17]} {[%emt 00:00:09]} Nf4 {[%clk 00:01:55]} 31. Re3 {[%clk
00:00:16]} {[%emt 00:00:04]} Rg3 {[%clk 00:01:56]} 32. Rxg3 {[%clk 00:00:08]}
{[%emt 00:00:10]} hxg3 {[%clk 00:01:57]} {[%emt 00:00:03]} 33. Nd3 {[%clk
00:00:05]} {[%emt 00:00:04]} Nxd3+ {[%emt 00:00:12]} 0-1

[Event "Open Mancomunitat de la Ribera Alta (Sumacàrcer)"]
[Site "Sumacàrcer, Spain"]
[Date "2018.11.18"]
[Round "8.6"]
[White "Luque Saiz, Andres"]
[Black "Cruz Lledo, Pablo"]
[Result "1-0"]
[TimeControl "5m+3s"]
[WhiteElo "1597"]
[BlackElo "2335"]

1. e4 {[%clk 00:05:03]} c6 {[%clk 00:05:05]} 2. d4 {[%clk 00:05:05]} d5 {[%clk
00:05:06]} 3. Nd2 {[%clk 00:05:06]} dxe4 {[%clk 00:05:00]} {[%emt 00:00:06]} 4.
Nxe4 {[%clk 00:05:08]} {[%emt 00:00:08]} Bf5 {[%clk 00:05:01]} 5. Ng3 {[%clk
00:05:09]} Bg6 {[%clk 00:05:02]} 6. Nh3 {[%clk 00:05:11]} {[%emt 00:00:13]} e6
{[%clk 00:04:54]} 7. Nf4 {[%clk 00:05:11]} {[%emt 00:00:04]} Bd6 {[%clk
00:04:56]} 8. h4 {[%clk 00:04:39]} {[%emt 00:00:30]} Bxf4 {[%clk 00:04:52]}
{[%emt 00:00:09]} 9. Bxf4 {[%clk 00:04:41]} {[%emt 00:00:03]} h6 {[%clk
00:04:52]} {[%emt 00:00:17]} 10. c3 {[%clk 00:04:38]} {[%emt 00:00:03]} Nf6
{[%clk 00:04:51]} 11. Bc4 {[%clk 00:04:27]} {[%emt 00:00:05]} Nbd7 {[%clk
00:04:48]} {[%emt 00:00:07]} 12. O-O {[%clk 00:04:25]} {[%emt 00:00:07]} Nd5
{[%clk 00:04:47]} {[%emt 00:00:04]} 13. Bxd5 {[%clk 00:03:58]} {[%emt
00:00:26]} cxd5 {[%clk 00:04:43]} {[%emt 00:00:07]} 14. h5 {[%clk 00:04:00]}
Bh7 {[%clk 00:04:45]} {[%emt 00:00:21]} 15. Qg4 {[%clk 00:03:38]} {[%emt
00:00:18]} Qf6 {[%clk 00:04:24]} {[%emt 00:00:11]} 16. Bd6 {[%clk 00:03:28]}
{[%emt 00:00:14]} Nb6 {[%clk 00:04:05]} {[%emt 00:00:21]} 17. Be5 {[%clk
00:03:28]} {[%emt 00:00:38]} Qe7 {[%clk 00:04:00]} 18. Qxg7 {[%clk 00:03:24]}
{[%emt 00:00:04]} O-O-O {[%clk 00:03:55]} 19. Bf6 {[%clk 00:03:17]} {[%emt
00:00:03]} Qe8 {[%clk 00:03:35]} {[%emt 00:00:38]} 20. Qxh8 {[%clk 00:03:01]}
{[%emt 00:00:03]} Qxh8 {[%clk 00:03:36]} 21. Bxh8 {[%clk 00:03:03]} {[%emt
00:00:08]} Rxh8 {[%clk 00:03:38]} 22. b3 {[%clk 00:03:02]} Kd7 {[%clk
00:03:38]} {[%emt 00:00:03]} 23. Rac1 {[%clk 00:03:02]} Rc8 {[%clk 00:03:25]}
{[%emt 00:00:13]} 24. Rfe1 {[%clk 00:02:55]} {[%emt 00:00:15]} a5 {[%clk
00:03:25]} 25. Nf1 {[%clk 00:02:54]} {[%emt 00:00:04]} a4 {[%clk 00:03:21]}
{[%emt 00:00:05]} 26. Ne3 {[%clk 00:02:55]} {[%emt 00:00:06]} Bd3 {[%clk
00:03:11]} {[%emt 00:00:06]} 27. Ng4 {[%clk 00:02:50]} {[%emt 00:00:09]} Ke7
{[%clk 00:03:03]} {[%emt 00:00:14]} 28. Re3 {[%clk 00:02:41]} {[%emt 00:00:10]}
Bb5 {[%clk 00:02:41]} {[%emt 00:00:23]} 29. Nxh6 {[%clk 00:01:53]} {[%emt
00:00:52]} Rh8 {[%clk 00:02:30]} {[%emt 00:00:21]} 30. Nf5+ {[%clk 00:01:55]}
Kd7 {[%clk 00:01:45]} {[%emt 00:00:45]} 31. Ng3 {[%clk 00:01:56]} {[%emt
00:00:04]} Nc8 {[%clk 00:01:45]} {[%emt 00:00:04]} 32. c4 {[%clk 00:01:38]}
{[%emt 00:00:18]} Bc6 {[%clk 00:01:46]} {[%emt 00:00:03]} 33. cxd5 {[%clk
00:01:20]} {[%emt 00:00:18]} Bxd5 {[%clk 00:01:47]} {[%emt 00:00:21]} 34. Rec3
{[%clk 00:01:20]} Ne7 {[%clk 00:01:38]} 35. f3 {[%clk 00:01:02]} {[%emt
00:00:16]} f5 {[%clk 00:01:38]} {[%emt 00:00:31]} 36. Rc7+ {[%clk 00:00:42]}
{[%emt 00:00:07]} Kd6 {[%clk 00:01:40]} 37. Kf2 {[%clk 00:00:43]} axb3 {[%clk
00:01:19]} {[%emt 00:00:16]} 38. axb3 {[%clk 00:00:44]} {[%emt 00:00:41]} b5
{[%clk 00:01:17]} 39. R7c5 {[%clk 00:00:27]} {[%emt 00:00:03]} b4 {[%clk
00:01:15]} 40. Ra1 {[%clk 00:00:16]} {[%emt 00:00:04]} Nc6 {[%clk 00:01:06]}
{[%emt 00:00:18]} 41. Ra6 {[%clk 00:00:17]} Kd7 {[%clk 00:01:08]} 42. Rb6
{[%clk 00:00:16]} {[%emt 00:00:04]} Ra8 {[%clk 00:00:56]} {[%emt 00:00:17]} 43.
Rcxc6 {[%clk 00:00:13]} Bxc6 {[%clk 00:00:57]} {[%emt 00:00:08]} 44. Rxb4
{[%clk 00:00:15]} Ra2+ {[%clk 00:00:58]} {[%emt 00:00:04]} 45. Ne2 {[%clk
00:00:17]} Kd6 {[%clk 00:00:51]} {[%emt 00:00:05]} 46. Rb8 {[%clk 00:00:19]}
{[%emt 00:00:03]} Ra7 {[%clk 00:00:52]} 47. b4 {[%clk 00:00:16]} {[%emt
00:00:04]} Rh7 {[%clk 00:00:50]} {[%emt 00:00:09]} 48. Nf4 {[%clk 00:00:19]} e5
{[%clk 00:00:46]} {[%emt 00:00:14]} 49. dxe5+ {[%clk 00:00:20]} Kxe5 {[%clk
00:00:48]} 50. Kg3 {[%clk 00:00:21]} Rg7+ {[%clk 00:00:46]} 51. Ng6+ {[%clk
00:00:23]} Kd4 {[%clk 00:00:37]} {[%emt 00:00:13]} 52. Kf4 {[%clk 00:00:25]}
Rh7 {[%clk 00:00:29]} {[%emt 00:00:10]} 53. Kg5 {[%clk 00:00:27]} Ke3 {[%clk
00:00:27]} {[%emt 00:00:29]} 54. Nf4 {[%clk 00:00:28]} Rg7+ {[%clk 00:00:20]}
55. Kxf5 {[%clk 00:00:24]} Rf7+ {[%clk 00:00:20]} 56. Kg5 {[%clk 00:00:23]}
{[%emt 00:00:10]} Rxf4 {[%clk 00:00:21]} {[%emt 00:00:04]} 57. h6 {[%clk
00:00:26]} Rf7 {[%clk 00:00:05]} {[%emt 00:00:09]} 58. Kg6 {[%clk 00:00:28]}
Rd7 {[%clk 00:00:05]} {[%emt 00:00:16]} 59. h7 {[%clk 00:00:29]} Ba4 {[%clk
00:00:07]} 60. h8=Q {[%clk 00:00:27]} Bc2+ {[%clk 00:00:08]} 61. Kg5 {[%clk
00:00:28]} {[%emt 00:00:04]} Kf2 {[%clk 00:00:09]} {[%emt 00:00:07]} 62. Qh4+
{[%clk 00:00:27]} {[%emt 00:00:03]} Kf1 {[%clk 00:00:11]} 63. Qh1+ {[%clk
00:00:26]} {[%emt 00:00:03]} Kf2 {[%clk 00:00:13]} 64. f4 {[%clk 00:00:24]}
{[%emt 00:00:09]} Rd5+ {[%clk 00:00:13]} 65. Kg4 {[%clk 00:00:26]} Bd1+ {[%clk
00:00:13]} {[%emt 00:00:04]} 66. Qxd1 {[%clk 00:00:19]} {[%emt 00:00:09]} Rxd1
{[%clk 00:00:13]} {[%emt 00:00:10]} 67. f5 {[%clk 00:00:21]} Kxg2 {[%clk
00:00:12]} {[%emt 00:00:05]} 68. f6 {[%clk 00:00:23]} Rf1 {[%clk 00:00:11]} 69.
Kg5 {[%clk 00:00:26]} 1-0

[Event "Open Mancomunitat de la Ribera Alta (Sumacàrcer)"]
[Site "Sumacàrcer, Spain"]
[Date "2018.11.18"]
[Round "8.7"]
[White "Gavarrete, Nahun"]
[Black "Garcia Vasquez, Jhoel"]
[Result "1-0"]
[TimeControl "5m+3s"]
[WhiteElo "2200"]
[BlackElo "2298"]

1. c4 {[%clk 00:05:04]} {[%emt 00:00:05]} e5 {[%clk 00:05:03]} {[%emt
00:00:05]} 2. g3 {[%clk 00:05:05]} g6 {[%clk 00:05:06]} 3. Bg2 {[%clk
00:05:07]} {[%emt 00:00:07]} Bg7 {[%clk 00:05:08]} 4. Nc3 {[%clk 00:05:09]} Nc6
{[%clk 00:05:10]} 5. Nf3 {[%clk 00:05:11]} d6 {[%clk 00:05:06]} {[%emt
00:00:04]} 6. O-O {[%clk 00:05:11]} {[%emt 00:00:09]} Nge7 {[%clk 00:05:09]} 7.
Rb1 {[%clk 00:05:05]} {[%emt 00:00:09]} Bf5 {[%clk 00:04:53]} {[%emt 00:00:11]}
8. d3 {[%clk 00:05:07]} Qd7 {[%clk 00:04:55]} {[%emt 00:00:06]} 9. b4 {[%clk
00:05:09]} O-O {[%clk 00:04:31]} {[%emt 00:00:25]} 10. b5 {[%clk 00:05:09]}
{[%emt 00:00:06]} Nd8 {[%clk 00:04:33]} 11. Re1 {[%clk 00:05:01]} {[%emt
00:00:08]} Bh3 {[%clk 00:04:35]} {[%emt 00:00:06]} 12. Bh1 {[%clk 00:05:03]} h6
{[%clk 00:04:37]} 13. d4 {[%clk 00:05:02]} {[%emt 00:00:05]} exd4 {[%clk
00:04:16]} {[%emt 00:00:21]} 14. Nxd4 {[%clk 00:05:02]} {[%emt 00:00:06]} Nf5
{[%clk 00:04:07]} {[%emt 00:00:12]} 15. Nxf5 {[%clk 00:04:55]} {[%emt
00:00:06]} Bxc3 {[%clk 00:03:14]} {[%emt 00:00:56]} 16. Nxh6+ {[%clk 00:03:41]}
{[%emt 00:01:18]} Kh7 {[%clk 00:03:15]} 17. Rb3 {[%clk 00:03:23]} {[%emt
00:00:24]} Bxe1 {[%clk 00:02:38]} {[%emt 00:00:38]} 18. Qxe1 {[%clk 00:03:24]}
Be6 {[%clk 00:02:08]} {[%emt 00:00:43]} 19. Qd2 {[%clk 00:03:20]} Bxc4 {[%clk
00:01:18]} {[%emt 00:00:52]} 20. Rb4 {[%clk 00:03:22]} Qe6 {[%clk 00:01:10]}
{[%emt 00:00:14]} 21. Bf3 {[%clk 00:02:59]} {[%emt 00:00:28]} d5 {[%clk
00:00:52]} {[%emt 00:00:16]} 22. Ng4 {[%clk 00:02:58]} {[%emt 00:00:04]} Kg8
{[%clk 00:00:15]} {[%emt 00:00:41]} 23. Bb2 {[%clk 00:02:41]} {[%emt 00:00:21]}
f6 {[%clk 00:00:16]} 24. Rxc4 {[%clk 00:02:31]} {[%emt 00:00:14]} c6 {[%clk
00:00:17]} 25. bxc6 {[%emt 00:00:10]} bxc6 {[%clk 00:00:20]} 26. Rxc6 {[%clk
00:02:28]} {[%emt 00:00:04]} Qe7 {[%clk 00:00:08]} {[%emt 00:00:11]} 27. Bxd5+
{[%clk 00:02:27]} {[%emt 00:00:05]} Nf7 {[%clk 00:00:05]} {[%emt 00:00:06]} 28.
Nxf6+ {[%clk 00:02:24]} {[%emt 00:00:05]} Kh8 {[%clk 00:00:06]} {[%emt
00:00:05]} 29. Ng4+ {[%clk 00:02:19]} {[%emt 00:00:06]} Kh7 {[%clk 00:00:05]}
{[%emt 00:00:12]} 30. Bxf7 {[%clk 00:02:14]} {[%emt 00:00:04]} Qd8 {[%emt
00:00:04]} 1-0